bitfinex-derivatives/quotes_ETHF0:USTF0_20251116
["timestamp","ask_amount","ask_price","bid_price","bid_amount"]
[1763276681212,3.2078,3203.3,3202.0,3.345]
[1763276681416,3.2078,3202.2,3202.0,0.1372]
[1763276681917,3.2078,3202.2,3201.0,0.1372]
[1763276682212,3.2078,3201.7,3201.5,0.14590091]
[1763276682411,3.2078,3201.7,3201.5,0.00870091]
[1763276682617,3.2078,3201.7,3201.0,0.1372]
[1763276682820,3.2078,3201.1,3201.0,0.1372]
[1763276683718,3.2078,3201.1,3201.0,0.14071862]
[1763276685110,3.2078,3201.1,3201.0,0.38071862]
[1763276687322,3.2078,3201.5,3201.4,0.24]
[1763276687624,3.2078,3201.5,3201.0,0.14071862]
[1763276688419,3.2078,3201.1,3201.0,0.14071862]
[1763276693526,3.2078,3201.1,3201.0,0.00351862]
[1763276693728,3.2078,3201.1,3201.0,0.14071862]
[1763276696637,3.2078,3201.1,3201.0,0.38071862]
[1763276698935,3.2078,3201.6,3201.5,0.1388]
[1763276699233,3.2078,3201.6,3201.5,0.3797]
[1763276700039,3.2078,3201.6,3201.5,0.1388]
[1763276701549,3.2078,3201.6,3201.0,0.14071862]
[1763276701839,3.2078,3201.6,3201.5,0.3797]
[1763276702441,3.2078,3201.6,3201.5,0.1388]
[1763276702640,3.2078,3201.6,3201.0,3.34851862]
[1763276702641,3.2078,3201.6,3201.0,0.14071862]
[1763276703143,3.2078,3201.6,3201.5,0.1388]
[1763276703740,3.2078,3201.6,3201.5,0.3797]
[1763276704138,0.00468369,3201.9,3201.8,0.2409]
[1763276704339,0.00468369,3201.9,3201.8,3.4487]
[1763276705248,3.2078,3202.6,3202.5,0.3797]
[1763276705446,3.2078,3202.6,3202.5,0.1388]
[1763276706247,3.21097995,3202.6,3202.5,0.1388]
[1763276707353,3.21097995,3202.6,3202.5,0.3797]
[1763276708050,0.00317995,3202.6,3202.5,0.3797]
[1763276708847,3.21097995,3202.6,3202.5,0.1388]
[1763276709351,3.21097995,3202.6,3202.5,0.3797]
[1763276710143,3.21097995,3202.6,3202.5,0.1388]
[1763276711250,3.21097995,3202.6,3202.5,0.3797]
[1763276712947,0.00317995,3202.6,3202.5,0.1388]
[1763276718361,0.00317995,3202.6,3202.5,0.3785]
[1763276727262,3.2078,3203.1,3203.0,0.3748]
[1763276727463,3.2078,3203.5,3203.4,0.2397]
[1763276727659,3.92390421,3203.5,3203.4,0.2397]
[1763276727855,3.2078,3203.5,3203.4,0.2397]
[1763276728267,3.92408435,3203.5,3203.4,0.2397]
[1763276728463,3.92692387,3203.5,3203.4,0.24371432]
[1763276729266,3.92696391,3203.5,3203.4,0.24371432]
[1763276731570,3.21063952,3203.5,3203.4,0.24371432]
[1763276732167,3.92697164,3203.5,3203.4,0.24371432]
[1763276732568,3.21063952,3203.5,3203.4,0.24371432]
[1763276733171,3.92743608,3203.5,3203.4,0.24371432]
[1763276734265,3.92743608,3203.5,3203.4,0.00401432]
[1763276737273,3.21063952,3203.5,3203.4,0.00401432]
[1763276740075,3.21063952,3203.5,3203.0,0.02677673]
[1763276741077,3.21063952,3203.5,3203.0,0.02979193]
[1763276741469,3.2078,3203.1,3203.0,0.02979193]
[1763276741972,3.21063952,3203.5,3203.0,0.02979193]
[1763276742174,0.71680942,3203.4,3203.0,0.02979193]
[1763276742564,3.2078,3203.1,3203.0,0.02979193]
[1763276743878,3.92464276,3203.1,3203.0,0.02979193]
[1763276753278,4.75181556,3203.1,3203.0,0.02979193]
[1763276753478,3.92464276,3203.1,3203.0,0.0030152]
[1763276755178,3.92464276,3203.1,3203.0,0.1421152]
[1763276755582,4.76179405,3203.1,3203.0,0.1421152]
[1763276756086,3.92464276,3203.1,3203.0,0.3840152]
[1763276756773,3.2078,3203.1,3203.0,0.3840152]
[1763276757079,3.92428111,3203.1,3203.0,0.1421152]
[1763276758194,3.92428111,3203.1,3203.0,0.3840152]
[1763276762486,3.2078,3203.1,3203.0,0.3840152]
[1763276763395,2.83287709,3203.1,3203.0,0.3840152]
[1763276763701,2.82435129,3203.1,3203.0,0.3840152]
[1763276766609,0.00283952,3203.5,3203.4,0.2362]
[1763276766812,3.21063952,3203.5,3203.4,0.2362]
[1763276767014,3.92785854,3203.5,3203.4,0.2362]
[1763276769316,3.21063952,3203.5,3203.4,0.2362]
[1763276770311,0.00283952,3203.5,3203.4,0.2362]
[1763276771117,0.00283952,3203.5,3203.4,1.91311188]
[1763276771318,0.00283952,3203.5,3203.4,0.2362]
[1763276772323,0.00283952,3203.5,3203.1,1.67691188]
[1763276772516,0.00283952,3203.5,3203.0,3.3499152]
[1763276774814,3.2078,3203.4,3203.0,3.3499152]
[1763276776019,0.00283952,3203.5,3203.4,0.2247]
[1763276778529,0.00283952,3203.5,3203.0,3.3499152]
[1763276779223,3.2078,3203.4,3203.0,3.3499152]
[1763276779923,3.2078,3203.4,3203.3,0.2247]
[1763276782225,0.00283952,3203.5,3203.4,0.2247]
[1763276787332,0.7172474,3203.7,3203.6,0.2247]
[1763276788422,0.72100709,3203.7,3203.6,0.2247]
[1763276792429,0.72100709,3203.7,3203.5,0.1394]
[1763276793926,0.7172474,3203.6,3203.5,0.1394]
[1763276794119,0.72100709,3203.7,3203.5,0.1394]
[1763276794326,0.7172474,3203.6,3203.5,0.1394]
[1763276794633,0.72100709,3203.7,3203.5,0.1394]
[1763276794938,0.7172474,3203.6,3203.5,0.1394]
[1763276795532,3.2078,3203.6,3203.5,0.1394]
[1763276795732,3.9250474,3203.6,3203.5,0.1394]
[1763276795927,4.76219869,3203.6,3203.0,0.1421152]
[1763276796131,3.2078,3203.2,3203.1,0.2387]
[1763276796438,3.9250474,3203.2,3203.1,0.2387]
[1763276800922,3.2078,3203.2,3203.1,0.2387]
[1763276802136,3.2078,3203.6,3203.5,0.1435]
[1763276802334,3.92266151,3203.6,3203.5,0.3822]
[1763276809942,3.92266151,3203.6,3203.5,0.1435]
[1763276810743,3.92266151,3203.6,3203.5,0.3822]
[1763276813353,0.00375969,3203.7,3203.6,0.2387]
[1763276819447,0.00468369,3203.8,3203.7,0.2359]
[1763276819641,0.00468369,3203.8,3203.7,1.91281188]
[1763276820442,3.2078,3204.9,3204.8,0.2359]
[1763276820649,3.21134241,3204.9,3204.8,0.2359]
[1763276820849,3.21134241,3204.9,3204.5,3.3533]
[1763276821249,3.21134241,3204.9,3204.8,0.2359]
[1763276824558,4.241e-05,3204.9,3204.8,0.2359]
[1763276828846,4.241e-05,3204.9,3204.5,3.35798369]
[1763276828847,3.20784241,3204.9,3204.5,0.15018369]
[1763276830753,6.7109382,3204.8,3204.0,0.1455]
[1763276830958,3.2078,3204.1,3204.0,0.1455]
[1763276844473,3.2078,3204.1,3204.0,0.3814]
[1763276848570,3.2078,3204.1,3204.0,0.1455]
[1763276854076,3.2078,3204.1,3204.0,0.3918]
[1763276870582,4.04495129,3204.5,3204.0,0.3918]
[1763276870783,0.71445613,3204.4,3204.0,0.3918]
[1763276872685,0.71445613,3204.4,3204.3,0.2463]
[1763276872880,3.2078,3204.5,3204.4,0.2463]
[1763276875880,3.2078,3204.5,3204.4,1.92816566]
[1763276876893,3.20784241,3204.9,3204.5,0.1352]
[1763276882587,3.20784241,3204.9,3204.2,4.88966566]
[1763276882890,3.2078,3204.4,3204.0,0.1455]
[1763276886392,0.71272687,3204.3,3203.7,0.00468369]
[1763276886585,3.2078,3203.9,3203.7,0.00468369]
[1763276898893,3.2078,3203.9,3203.0,0.1382152]
[1763276899091,3.2078,3203.4,3203.0,0.1382152]
[1763276902805,0.00468369,3203.5,3203.0,0.1382152]
[1763276903005,3.2078,3203.4,3203.0,0.1382152]
[1763276906599,3.2078,3203.4,3203.3,0.2468]
[1763276906801,3.2078,3203.4,3203.0,0.1382152]
[1763276909305,3.2078,3203.4,3203.3,0.2468]
[1763276910109,3.2078,3203.4,3203.0,0.1382152]
[1763276912408,0.00468369,3203.5,3203.0,0.1382152]
[1763276912708,3.2078,3203.4,3203.0,0.1382152]
[1763276913702,3.2078,3203.4,3203.3,0.2436]
[1763276916811,0.00468369,3203.5,3203.4,0.2436]
[1763276919517,3.2078,3204.2,3204.1,0.2436]
[1763276919720,3.2078,3204.2,3204.0,0.1431]
[1763276926422,0.00468369,3204.4,3204.0,0.1431]
[1763276936328,0.00468369,3204.4,3204.3,0.2436]
[1763276938331,0.71816172,3204.4,3204.3,0.2436]
[1763276940532,3.92596172,3204.4,3204.3,0.2436]
[1763276940940,0.00468369,3204.4,3204.3,0.2436]
[1763276941234,3.2078,3204.8,3204.7,0.242]
[1763276945432,4.241e-05,3204.9,3204.6,3.2078]
[1763276945731,4.241e-05,3204.9,3204.6,4.89039699]
[1763276946729,3.2078,3206.0,3205.8,0.242]
[1763276946930,3.2078,3206.0,3205.9,0.242]
[1763276947144,3.92175336,3206.0,3205.9,0.242]
[1763276947734,3.92433578,3206.0,3205.9,0.24519204]
[1763276948333,3.21038242,3206.0,3205.9,0.24519204]
[1763276949936,3.21038242,3206.0,3205.9,0.00319204]
[1763276955429,3.21038242,3206.0,3205.9,0.24519204]
[1763276956435,3.2078,3207.2,3206.9,0.2252]
[1763276956639,3.2078,3207.2,3207.0,0.1369]
[1763276957546,3.21040516,3207.2,3207.0,0.1369]
[1763276957739,3.21040516,3207.2,3207.1,0.2252]
[1763276958044,0.00468369,3207.4,3207.3,0.2252]
[1763276958948,0.00798863,3207.4,3207.3,0.2252]
[1763276975854,3.2078,3207.7,3207.6,0.2246]
[1763276976758,3.21027737,3207.7,3207.6,0.2246]
[1763276977347,0.00247737,3207.7,3207.6,0.2246]
[1763276986476,0.7150024,3207.7,3207.6,0.2246]
[1763276989881,2.4e-06,3207.8,3207.7,0.2246]
[1763276990082,0.00465912,3208.0,3207.9,0.2246]
[1763276990985,0.00777235,3208.0,3207.9,0.2246]
[1763276991178,4.04495129,3208.5,3208.4,0.2246]
[1763276991382,3.2078,3208.5,3208.4,0.2246]
[1763276992085,0.0346,3208.7,3208.4,0.2246]
[1763276992383,0.03765264,3208.7,3208.6,3.4324]
[1763276994479,0.2273,3209.3,3209.2,0.2246]
[1763276994879,0.2273,3209.1,3209.0,3.5799]
[1763276995689,0.22961819,3209.1,3209.0,3.5799]
[1763276995888,0.22961819,3209.1,3209.0,3.2078]
[1763276996087,0.364,3209.0,3208.9,0.00467632]
[1763277000384,0.2273,3209.0,3208.9,0.23087632]
[1763277001087,0.2273,3209.0,3208.9,0.00467632]
[1763277001281,0.00231819,3209.1,3209.0,0.3747]
[1763277001891,0.2281,3209.9,3209.5,0.1485]
[1763277002086,0.2281,3209.9,3209.8,0.2262]
[1763277002889,0.93712373,3210.1,3210.0,0.3747]
[1763277003193,0.00305734,3210.1,3210.0,0.3747]
[1763277003784,0.00305734,3210.1,3210.0,3.5825]
[1763277003986,3.2078,3210.6,3210.5,0.3747]
[1763277004190,3.4359,3210.6,3210.5,0.3747]
[1763277004888,3.43903821,3210.6,3210.5,0.3747]
[1763277005395,3.43903821,3210.6,3210.0,3.3563]
[1763277005894,3.43903821,3210.6,3210.5,0.2262]
[1763277006095,0.1359,3210.5,3210.0,3.3563]
[1763277006292,0.00313821,3210.6,3210.5,0.3747]
[1763277007987,0.23123821,3210.6,3210.5,0.3747]
[1763277009987,0.23123821,3210.6,3210.0,3.3563]
[1763277010300,0.2281,3210.1,3210.0,3.5825]
[1763277010493,0.00313821,3210.6,3210.0,3.5825]
[1763277012501,0.2281,3210.1,3210.0,3.5825]
[1763277012698,3.3437,3210.5,3209.6,3.434]
[1763277014299,0.2281,3209.7,3209.6,3.434]
[1763277015103,0.2281,3209.7,3209.6,3.4529]
[1763277015303,3.2078,3210.1,3209.6,3.4529]
[1763277015604,3.4489,3210.1,3210.0,0.3896]
[1763277015996,3.4489,3210.1,3209.6,3.2078]
[1763277016993,3.4489,3210.1,3210.0,0.2451]
[1763277017203,3.4489,3210.1,3210.0,0.3896]
[1763277017406,3.4489,3210.1,3209.6,3.2078]
[1763277018201,3.4489,3210.1,3210.0,0.2451]
[1763277018607,2.7341,3210.4,3210.3,0.2451]
[1763277018804,3.2078,3210.5,3210.4,0.2451]
[1763277019308,3.4489,3210.5,3210.4,0.2451]
[1763277020403,3.4489,3210.5,3210.0,0.1445]
[1763277021107,3.4489,3210.5,3210.4,0.2451]
[1763277021898,3.2078,3210.5,3210.4,0.2451]
[1763277022603,0.00313821,3210.6,3210.5,0.3896]
[1763277023410,0.24423821,3210.6,3210.5,0.3896]
[1763277026501,0.00313821,3210.6,3210.5,0.3896]
[1763277032217,0.24923821,3210.6,3210.5,0.3896]
[1763277033214,0.2461,3210.5,3210.4,3.4511]
[1763277033517,0.00313821,3210.6,3210.5,0.3897]
[1763277035615,0.24923821,3210.6,3210.5,0.3897]
[1763277037116,0.3831,3210.5,3210.0,3.3523]
[1763277037321,0.137,3210.5,3210.0,3.5956]
[1763277037916,0.2461,3210.1,3210.0,3.5956]
[1763277038116,0.137,3210.5,3210.0,3.5956]
[1763277038417,0.2461,3210.5,3210.4,0.2433]
[1763277038607,0.2461,3210.1,3210.0,3.2078]
[1763277038808,0.2461,3210.1,3209.6,3.2078]
[1763277039019,0.2461,3209.7,3209.6,3.4511]
[1763277040225,0.2461,3209.7,3209.6,3.2078]
[1763277040522,0.2461,3209.7,3209.6,3.4511]
[1763277042523,0.2461,3209.7,3209.6,3.2078]
[1763277044119,0.2461,3209.7,3209.6,3.4511]
[1763277046524,0.2461,3209.3,3209.2,3.4511]
[1763277046730,0.70766406,3209.7,3209.2,3.4511]
[1763277047029,0.95376406,3209.7,3209.6,0.2433]
[1763277048326,0.2461,3209.6,3209.2,3.2078]
[1763277048622,0.2461,3209.6,3209.5,0.3897]
[1763277048826,0.95376406,3209.7,3209.6,0.2433]
[1763277049234,0.70766406,3209.7,3209.6,0.2433]
[1763277049528,0.95376406,3209.7,3209.6,0.2433]
[1763277049724,0.95376406,3209.7,3209.5,0.1464]
[1763277049725,0.2461,3209.3,3209.2,3.4511]
[1763277049923,0.70766406,3209.7,3209.2,3.4511]
[1763277052026,0.2461,3209.3,3209.2,3.4511]
[1763277055132,0.2461,3209.3,3209.2,0.2433]
[1763277056833,3.4539,3209.6,3209.5,0.3897]
[1763277058633,3.2078,3209.6,3209.5,0.3897]
[1763277060838,2.493,3209.9,3209.8,0.2311]
[1763277061035,3.2078,3210.1,3210.0,0.367]
[1763277061228,3.2078,3210.5,3210.0,0.1359]
[1763277061430,3.2078,3210.5,3210.4,0.2311]
[1763277067041,3.453,3210.5,3210.4,0.2311]
[1763277067540,3.59,3210.5,3210.0,0.1359]
[1763277068342,3.453,3210.5,3210.4,0.2311]
[1763277068843,0.2452,3210.5,3210.4,0.2311]
[1763277071144,0.00313821,3210.6,3210.5,0.367]
[1763277071643,0.24833821,3210.6,3210.5,0.367]
[1763277072545,0.24833821,3210.6,3210.2,3.2078]
[1763277072740,0.2452,3210.3,3210.2,3.4389]
[1763277077548,0.2452,3210.3,3210.2,0.2311]
[1763277085060,0.2466,3209.9,3209.8,5.12885217]
[1763277085363,3.4544,3210.3,3210.0,0.1381]
[1763277085554,0.95418771,3210.2,3210.1,0.2393]
[1763277086055,0.2466,3210.2,3210.1,0.2393]
[1763277086254,0.95432234,3210.2,3210.1,0.2393]
[1763277088863,0.70772234,3210.2,3210.1,0.2393]
[1763277089466,0.84053458,3210.6,3210.5,0.2419]
[1763277089766,0.71232016,3210.6,3210.5,0.2419]
[1763277089964,0.00313821,3210.6,3210.5,0.2419]
[1763277090165,0.71232016,3210.6,3210.5,0.2419]
[1763277090374,0.00313821,3210.6,3210.5,0.2419]
[1763277090570,0.71232016,3210.6,3210.5,0.2419]
[1763277090772,0.00313821,3210.6,3210.5,0.3815]
[1763277091070,0.71232016,3210.6,3210.5,0.3815]
[1763277091268,0.00313821,3210.6,3210.5,0.3815]
[1763277098472,0.22743821,3210.6,3210.5,0.3815]
[1763277098675,0.22743821,3210.6,3210.5,0.2419]
[1763277099172,0.00313821,3210.6,3210.5,0.3711]
[1763277102177,0.22743821,3210.6,3210.5,0.2419]
[1763277102376,0.2243,3210.4,3210.3,1.68175217]
[1763277102573,0.2243,3209.7,3209.6,1.92365217]
[1763277102881,0.2243,3209.6,3209.5,0.2419]
[1763277103277,0.2243,3209.4,3209.3,3.4497]
[1763277103480,0.2243,3209.2,3209.1,1.92365217]
[1763277103680,0.2243,3209.2,3209.1,0.2419]
[1763277104282,0.2243,3209.0,3208.9,3.45437632]
[1763277104780,0.3606,3209.5,3209.4,0.2419]
[1763277105170,0.3606,3209.5,3209.0,0.1232]
[1763277106176,3.3441,3209.5,3209.0,0.2419]
[1763277106378,0.3606,3209.0,3208.9,3.21247632]
[1763277107176,0.3606,3209.0,3208.9,3.45437632]
[1763277107884,0.3606,3209.0,3208.9,0.00467632]
[1763277110280,0.3606,3209.0,3208.9,0.24657632]
[1763277110474,0.2243,3209.0,3208.9,0.24657632]
[1763277112181,0.3606,3209.0,3208.9,0.24657632]
[1763277112477,0.3606,3209.0,3208.9,0.00467632]
[1763277113286,0.3606,3208.5,3208.4,0.24553982]
[1763277113481,3.3441,3209.0,3208.5,0.1232]
[1763277114186,3.5684,3209.0,3208.9,0.2419]
[1763277114481,3.4321,3209.0,3208.9,0.2419]
[1763277120389,3.2078,3209.0,3208.9,0.2419]
[1763277121089,3.4514,3209.0,3208.9,0.2419]
[1763277122592,0.2436,3209.0,3208.9,0.2419]
[1763277126194,0.3881,3209.0,3208.9,0.2419]
[1763277129383,0.3881,3209.0,3208.5,0.1232]
[1763277129896,0.2436,3208.6,3208.5,0.3561]
[1763277130091,0.00467632,3209.1,3209.0,0.2329]
[1763277130394,0.00467632,3209.1,3209.0,0.371]
[1763277136400,0.23577632,3209.1,3209.0,0.2329]
[1763277136595,0.00467632,3209.1,3209.0,0.3725]
[1763277140802,0.23577632,3209.1,3209.0,0.3725]
[1763277145402,0.00467632,3209.1,3209.0,0.3725]
[1763277145603,3.3441,3210.0,3209.9,0.2335]
[1763277145604,3.5752,3210.0,3209.9,0.2335]
[1763277145904,3.5752,3210.0,3209.5,0.1396]
[1763277145905,4.28432558,3210.0,3209.5,0.1396]
[1763277146096,0.70912558,3209.9,3209.5,0.1396]
[1763277146298,0.2311,3209.6,3209.5,0.3731]
[1763277148709,0.2311,3209.6,3209.5,0.2335]
[1763277152405,0.84487214,3210.0,3209.5,0.3721]
[1763277153104,0.70857214,3210.0,3209.9,0.2463]
[1763277153306,3.2078,3210.1,3210.0,0.3942]
[1763277153500,3.91622135,3210.1,3210.0,0.3942]
[1763277153709,4.14792135,3210.1,3210.0,0.2463]
[1763277154007,0.1453,3210.0,3209.5,1.81723221]
[1763277154406,0.377,3210.0,3209.9,0.2463]
[1763277156718,0.2317,3210.0,3209.9,0.2463]
[1763277156915,3.4395,3210.1,3210.0,0.2463]
[1763277157717,0.00313821,3210.6,3210.5,0.3942]
[1763277160418,0.2317,3210.3,3210.2,0.25097632]
[1763277160918,0.00313821,3210.6,3210.5,0.2463]
[1763277161519,0.23483821,3210.6,3210.5,0.2463]
[1763277165815,0.2317,3210.3,3210.2,0.00467632]
[1763277166017,3.4395,3210.3,3210.2,0.00467632]
[1763277170424,4.14694127,3210.3,3210.2,0.00467632]
[1763277174126,4.14694127,3210.3,3209.2,4.88643221]
[1763277174426,0.70744127,3210.2,3209.2,4.88643221]
[1763277175130,0.14997632,3210.0,3209.4,0.00467632]
[1763277176220,0.2317,3209.5,3209.4,0.25097632]
[1763277177421,0.14997632,3210.0,3209.5,0.1258]
[1763277178528,0.2317,3209.6,3209.5,0.3721]
[1763277179419,0.2317,3209.6,3209.5,0.2463]
[1763277180326,0.14997632,3210.0,3209.4,0.00467632]
[1763277180327,0.3682,3209.5,3209.4,0.00467632]
[1763277180534,0.3682,3209.5,3209.4,0.24217632]
[1763277180735,3.4381,3209.7,3209.6,0.2375]
[1763277181025,4.14746718,3209.7,3209.6,0.2375]
[1763277181631,0.2303,3209.5,3209.4,0.24217632]
[1763277182025,3.2078,3209.7,3209.6,0.2375]
[1763277182222,4.14737372,3209.7,3209.6,0.2375]
[1763277182429,3.2078,3209.7,3209.6,0.2375]
[1763277183137,0.14997632,3210.0,3209.6,0.2375]
[1763277183336,0.85910191,3210.0,3209.6,0.2375]
[1763277183532,1.08940191,3210.0,3209.9,0.2375]
[1763277185935,0.3682,3209.5,3209.4,0.00467632]
[1763277186134,0.2303,3208.7,3208.6,1.91613221]
[1763277186323,0.2303,3208.7,3208.6,0.2375]
[1763277186526,0.3682,3208.5,3208.4,0.00363982]
[1763277186830,0.2303,3208.1,3208.0,1.0]
[1763277187429,0.0391,3207.8,3207.7,0.00467632]
[1763277187736,0.04161839,3207.8,3207.7,0.00694681]
[1763277188733,1.80673305,3209.5,3207.8,6.0]
[1763277189034,1.80673305,3209.5,3207.7,5.51694681]
[1763277189035,0.1379,3209.5,3209.4,3.2078]
[1763277189230,0.3682,3209.5,3209.4,3.2078]
[1763277189632,0.37071365,3209.5,3209.4,3.2078]
[1763277190036,0.3682,3209.0,3208.9,3.2078]
[1763277190933,0.1379,3209.0,3208.9,3.2078]
[1763277193139,0.3682,3209.0,3208.9,3.2078]
[1763277194534,0.1379,3209.0,3208.9,3.2078]
[1763277195834,0.3715,3209.0,3208.9,3.2078]
[1763277197748,0.2336,3208.6,3208.5,3.2078]
[1763277198040,0.2336,3208.2,3208.1,3.2078]
[1763277205648,0.2336,3207.8,3207.7,3.21474681]
[1763277207447,3.4414,3207.8,3207.7,0.00694681]
[1763277210950,0.2338,3207.4,3207.3,3.2078]
[1763277211250,0.378,3207.0,3206.9,3.2078]
[1763277211850,0.38019585,3207.0,3206.9,3.21048625]
[1763277214052,0.14639585,3207.0,3206.9,3.21048625]
[1763277217359,0.1442,3207.0,3206.9,3.21048625]
[1763277218359,0.14667951,3207.0,3206.9,3.21048625]
[1763277218658,0.38047951,3207.0,3206.9,3.21048625]
[1763277220253,0.38047951,3207.0,3206.9,0.00268625]
[1763277228466,0.2338,3206.7,3206.6,0.00467632]
[1763277229368,0.2338,3206.7,3206.6,0.00816635]
[1763277233364,0.2338,3206.2,3206.1,3.2078]
[1763277234370,0.2338,3206.2,3206.1,3.21153177]
[1763277235265,0.2338,3206.2,3206.1,0.00373177]
[1763277235469,0.93926303,3206.2,3206.1,0.00373177]
[1763277240582,0.2411,3205.9,3205.8,0.00467632]
[1763277241470,0.14887632,3206.5,3205.8,6.00730547]
[1763277241670,0.14887632,3206.5,3205.8,0.00730547]
[1763277241872,0.14887632,3206.5,3206.1,3.2078]
[1763277247275,0.14887632,3206.5,3205.8,1.68593768]
[1763277247462,0.14887632,3206.5,3206.1,3.2078]
[1763277249978,0.14887632,3206.5,3205.8,1.68593768]
[1763277250281,0.14887632,3206.5,3206.1,3.2078]
[1763277250580,0.14737632,3206.5,3206.1,3.2078]
[1763277253980,0.14737632,3206.5,3206.3,3.2078]
[1763277263987,0.14737632,3206.5,3206.4,1.1199513]
[1763277264187,0.00467632,3206.5,3206.4,1.67863221]
[1763277264688,0.15177632,3206.5,3206.3,3.2078]
[1763277266186,0.15177632,3206.5,3206.4,3.2078]
[1763277268086,0.15177632,3206.5,3206.1,2.22419487]
[1763277268287,0.15177632,3206.5,3206.2,2.22419487]
[1763277268982,0.15177632,3206.5,3206.4,3.2078]
[1763277269388,0.14667951,3207.0,3206.4,3.2078]
[1763277269583,0.14667951,3207.0,3206.7,1.12082506]
[1763277271392,0.2311,3206.9,3206.8,1.12082506]
[1763277271891,0.14667951,3207.0,3206.8,1.12082506]
[1763277274392,0.14667951,3207.0,3206.9,1.12082506]
[1763277277892,0.00247951,3207.0,3206.8,3.2078]
[1763277280387,0.13817951,3207.0,3206.8,3.2078]
[1763277281795,0.00247951,3207.0,3206.8,3.2078]
[1763277282690,0.13817951,3207.0,3206.8,3.2078]
[1763277286602,0.2311,3206.9,3206.8,3.2078]
[1763277286788,0.13817951,3207.0,3206.8,3.2078]
[1763277286993,0.36927951,3207.0,3206.9,1.67989595]
[1763277288604,0.13817951,3207.0,3206.9,1.67989595]
[1763277289201,0.36927951,3207.0,3206.9,1.67989595]
[1763277291310,0.36927951,3207.0,3206.8,3.2078]
[1763277291599,0.2311,3206.9,3206.8,4.88864982]
[1763277292502,0.2311,3206.9,3206.8,3.2078]
[1763277293597,0.2311,3206.9,3206.8,4.88948413]
[1763277294000,0.2311,3206.9,3206.8,3.2078]
[1763277296506,0.2311,3206.9,3206.6,1.1212147]
[1763277296507,0.2311,3206.7,3206.6,1.1212147]
[1763277299112,0.2311,3206.6,3206.5,3.2078]
[1763277300421,0.2329,3206.3,3206.2,1.1212147]
[1763277301111,0.2329,3206.2,3206.1,1.1212147]
[1763277301310,0.2329,3206.2,3206.0,4.3290147]
[1763277301514,0.2329,3206.1,3205.9,1.1212147]
[1763277301706,0.2329,3205.9,3205.8,0.00730547]
[1763277302614,0.2329,3205.2,3205.1,1.1212147]
[1763277302815,0.2329,3205.2,3205.0,1.1212147]
[1763277303211,0.1361,3205.0,3204.9,1.1212147]
[1763277303615,0.1361,3205.0,3204.9,1.12343369]
[1763277304323,0.1361,3205.0,3204.9,0.00221899]
[1763277304825,0.1361,3206.0,3204.9,0.00221899]
[1763277305018,0.1361,3206.0,3205.7,3.2078]
[1763277306618,0.00467632,3206.2,3205.7,4.32504296]
[1763277307323,0.1361,3206.0,3205.7,3.2078]
[1763277312636,0.1361,3206.0,3205.9,3.2078]
[1763277322436,0.1361,3206.0,3205.9,4.32504296]
[1763277323945,0.3843,3206.0,3205.9,4.32504296]
[1763277324745,0.1361,3206.0,3205.9,4.32504296]
[1763277325342,0.1361,3206.0,3205.9,3.2078]
[1763277326544,0.1361,3206.0,3205.8,1.67586444]
[1763277326849,0.1361,3206.0,3205.9,3.2078]
[1763277328347,0.1361,3206.0,3205.9,4.88366444]
[1763277332354,0.1361,3206.0,3205.9,19.96566444]
[1763277333248,0.1361,3206.0,3205.9,18.2898]
[1763277333450,0.3647,3206.0,3205.9,3.2078]
[1763277333644,0.3647,3206.0,3205.9,19.97241929]
[1763277334354,0.3647,3206.0,3205.9,18.2898]
[1763277336354,0.1361,3206.0,3205.9,18.2898]
[1763277339740,0.3647,3206.0,3205.9,3.2078]
[1763277343557,0.2286,3205.9,3205.8,1.12344935]
[1763277343756,9.3439,3206.0,3205.6,1.12344935]
[1763277343757,0.2286,3205.7,3205.6,1.12344935]
[1763277343957,0.2286,3205.6,3205.5,1.12344935]
[1763277344256,0.3763,3205.5,3205.4,4.33124935]
[1763277346551,0.3763,3205.5,3205.4,3.2078]
[1763277349562,0.1477,3205.5,3205.4,3.2078]
[1763277354667,0.1477,3205.5,3205.3,3.2078]
[1763277355869,0.1477,3205.5,3205.2,1.12344935]
[1763277356469,0.1477,3205.5,3205.3,3.2078]
[1763277356766,0.2286,3205.4,3205.3,3.2078]
[1763277358881,0.1477,3205.5,3205.3,3.2078]
[1763277362065,0.1361,3206.0,3205.4,16.20644935]
[1763277362376,0.1361,3206.0,3205.7,3.2078]
[1763277363270,0.2286,3205.8,3205.7,3.2078]
[1763277364568,0.3709,3205.5,3205.4,1.12344935]
[1763277364774,0.2286,3205.4,3205.3,3.2078]
[1763277366779,0.2286,3205.4,3205.2,1.12344935]
[1763277367376,0.2286,3205.3,3205.2,1.12344935]
[1763277368081,0.1423,3205.5,3205.2,1.12344935]
[1763277368780,0.1423,3205.5,3205.3,1.12344935]
[1763277368973,0.1423,3205.5,3205.4,1.12344935]
[1763277369175,2.493,3205.9,3205.4,1.68512932]
[1763277369380,2.493,3205.9,3205.7,3.2078]
[1763277370183,2.493,3205.9,3205.7,4.32904874]
[1763277371584,2.493,3205.9,3205.7,4.89292932]
[1763277372478,0.2286,3205.8,3205.7,3.2078]
[1763277375088,0.1361,3206.0,3205.7,4.33004219]
[1763277377790,0.1361,3206.0,3205.8,1.12224219]
[1763277379992,0.2265,3205.9,3205.8,1.12224219]
[1763277380798,0.1361,3206.0,3205.8,1.12224219]
[1763277381492,0.2265,3205.9,3205.8,1.12224219]
[1763277381789,0.2265,3205.9,3205.7,4.33004219]
[1763277381992,0.2265,3205.8,3205.7,4.33004219]
[1763277384092,0.2265,3205.8,3205.7,3.2078]
[1763277384299,0.1361,3206.0,3205.7,3.2078]
[1763277384596,0.1361,3206.0,3205.8,1.12182733]
[1763277392599,0.2358,3205.9,3205.8,1.12182733]
[1763277395616,0.1361,3206.0,3205.8,1.12182733]
[1763277397218,0.2358,3205.9,3205.8,1.12182733]
[1763277398113,0.2358,3205.9,3205.7,4.89116329]
[1763277400316,0.1361,3206.0,3205.7,4.89116329]